[Event "Indian Blitz Championship 2023"]
[Site "Nashik"]
[Date "2024.03.07"]
[Round "3.9"]
[White "Sharma, Harish"]
[Black "Aradhya, Garg"]
[Result "1/2-1/2"]
[ECO "C54"]
[WhiteElo "1926"]
[BlackElo "2385"]
[Annotator "TA"]
[PlyCount "123"]
[EventDate "2024.03.07"]
[EventType "blitz"]
[EventCountry "IND"]
[SourceTitle "playchess.com"]
[Source "ChessBase"]
[SourceQuality "1"]
[TimeControl "180+2"]

{[%evp 13,123,37,40,8,-16,-19,-22,-12,79,11,34,-95,-37,-22,52,30,26,18,22,22,59,50,62,68,61,64,55,55,60,42,77,65,65,66,65,73,77,66,78,76,72,55,99,92,106,103,111,111,286,281,252,247,299,280,282,202,195,192,388,0,404,364,432,59,206,8,0,0,0,0,8,0,0,0,0,0,0,0,0,-5539,-8475,-29936,-12833,-5414,-8,-8,-8,-8,-8,-8,-8,-8,-8,-8,-8,-8,-8,-134,-134,-134,-8,-8,-71,-134,-134,-134,-134,-134,-134,-134,-8,-8]} 1. e4 {[%emt 0:00:02]} e5 {[%emt 0:00:00]} 2. Nf3 {[%emt 0:00:00]} Nc6 {[%emt 0:00:00]} 3. Bc4 {[%emt 0:00:02]} Nf6 {[%emt 0:00:01]} 4. d3 {[%emt 0:00:01]} Bc5 {[%emt 0:00:01]} 5. c3 {[%emt 0:00:04]} O-O {[%emt 0:00:02]} 6. O-O {[%emt 0:00:03]} d5 {[%emt 0:00:02]} 7. exd5 {[%emt 0:00:03]} Nxd5 {[%emt 0:00:01]} 8. Qe2 {[%emt 0:00:03][%cal Oa2a4]} Bg4 {[%emt 0:00:27]} 9. Re1 {[%emt 0:00:23]} Nb6 {[%emt 0:00:33]} 10. Bb3 {[%emt 0:00:06]} Bf5 {[%emt 0:00:23]} (10... Kh8 $11 {bleibt in der Remisbreite.}) 11. Bc2 {[%emt 0:00:03]} (11. Nxe5 $16 Qf6 12. Nf3) 11... Nd5 {[%emt 0:00:25]} 12. Nxe5 {[%emt 0:00:27]} (12. b4 $14 {behält die Oberhand.} Bb6 13. b5) 12... Nxe5 {[%emt 0:00:12]} (12... Re8 $1 $17 13. d4 Bxd4) 13. Qxe5 $15 {[%emt 0:00:03]} Re8 {[%emt 0:00:01]} (13... Qd7 $11 14. Qe2 Rae8) 14. Qxe8+ $14 {[%emt 0:00:05]} Qxe8 {[%emt 0:00:02]} 15. Rxe8+ {[%emt 0:00:04]} Rxe8 {[%emt 0:00:01]} 16. Kf1 {[%emt 0:00:02] Gegen Re1+ gerichtet.} h5 {[%emt 0:00:21]} 17. h3 {[%emt 0:00:04]} Bd6 {[%emt 0:00:16]} 18. a4 $1 {[%emt 0:00:26]} Nf4 {[%emt 0:00:02]} 19. Bxf4 {[%emt 0:00:05]} Bxf4 {[%emt 0:00:01]} 20. Na3 {[%emt 0:00:02]} g5 {[%emt 0:00:10][%cal Bg7g5,Bg5g4][%mdl 32]} 21. Rd1 {[%emt 0:00:09]} g4 {[%emt 0:00:04]} 22. g3 {[%emt 0:00:05]} Bd6 {[%emt 0:00:02]} 23. h4 $1 {[%emt 0:00:07]} Bxa3 {[%emt 0:00:02]} 24. bxa3 {[%emt 0:00:01][%mdl 4096] Endspiel. KRB-KRB} Re6 {[%emt 0:00:02]} 25. Re1 {[%emt 0:00:11]} Rc6 {[%emt 0:00:02]} 26. c4 {[%emt 0:00:03]} Kg7 {[%emt 0:00:03]} 27. Re3 {[%emt 0:00:11]} Rb6 {[%emt 0:00:04]} 28. Re5 {[%emt 0:00:02]} Kf6 {[%emt 0:00:19] [#]} 29. Rb5 {[%emt 0:00:01]} Rxb5 {[%emt 0:00:05]} 30. axb5 $16 {[%emt 0:00:05] KB-KB} Ke5 $2 {[%emt 0:00:02] [#]} (30... c5 $16 {ist eine bessere Verteidigung.}) 31. d4+ $1 $18 {[%emt 0:00:03][%mdl 512]} Kf6 {[%emt 0:00:01]} 32. Bb3 {[%emt 0:00:06]} Bd3+ {[%emt 0:00:03]} 33. Ke1 {[%emt 0:00:01]} Kf5 {[%emt 0:00:01]} 34. Kd2 {[%emt 0:00:06]} Ke4 {[%emt 0:00:01]} 35. Kc3 {[%emt 0:00:02]} Be2 $2 {[%emt 0:00:02]} (35... Bb1 {ist wohl besser.}) 36. Kd2 $2 {[%emt 0:00:08]} (36. c5 $18) 36... Bf1 $2 {[%emt 0:00:02][%mdl 8192]} (36... Bd3 $1 $11) 37. c5 {[%emt 0:00:06]} f5 {[%emt 0:00:09]} 38. Bf7 $2 {[%emt 0:00:06]} ({Günstiger ist} 38. b6 $18 cxb6 39. cxb6 axb6 40. Bc2+ Kf3 41. Ke1 (41. Bxf5 Kxf2 42. d5 Kxg3 $11)) 38... Kxd4 {[%emt 0:00:01] [#]} (38... Bxb5 $14 39. Bxh5 Kxd4) 39. Bxh5 $2 {[%emt 0:00:03]} ({Weiss braucht} 39. b6 $1 $18 {[%cal Rb6c7]} cxb6 40. cxb6 axb6 41. Bxh5) 39... Bxb5 $11 {[%emt 0:00:04]} 40. Bg6 {[%emt 0:00:05]} Ke5 {[%emt 0:00:01]} 41. Ke3 {[%emt 0:00:02]} b6 {[%emt 0:00:00]} 42. cxb6 {[%emt 0:00:02]} axb6 {[%emt 0:00:01]} 43. h5 {[%emt 0:00:03] Droht h6 und aus.} Kf6 {[%emt 0:00:01]} 44. Kf4 {[%emt 0:00:01]} Bd7 {[%emt 0:00:01]} 45. Bh7 {[%emt 0:00:07]} Be6 {[%emt 0:00:01]} 46. h6 $2 {[%emt 0:00:03][%mdl 8192]} (46. Bg6 $11) 46... c5 $19 {[%emt 0:00:01]} 47. f3 {[%emt 0:00:06]} gxf3 {[%emt 0:00:02]} 48. Kxf3 {[%emt 0:00:01]} c4 $2 {[%emt 0:00:01]} (48... Kg5 $19 49. g4 fxg4+ 50. Ke3 Kxh6) 49. Ke3 $11 {[%emt 0:00:04]} Kg5 {[%emt 0:00:02]} 50. Kd4 {[%emt 0:00:02]} Kxh6 {[%emt 0:00:01]} (50... b5 {ist vielschichtiger.} 51. Bxf5 Bxf5 52. a4 bxa4 53. Kxc4 Bc2) 51. Bxf5 {[%emt 0:00:04]} Bxf5 {[%emt 0:00:02]} 52. Kxc4 {[%emt 0:00:01] KB-KPP} Bd7 {[%emt 0:00:01]} 53. Kb4 {[%emt 0:00:06] Gegen Ba4 gerichtet.} b5 {[%emt 0:00:04]} 54. a4 {[%emt 0:00:02]} bxa4 {[%emt 0:00:01] KB-KP} 55. g4 {[%emt 0:00:00]} Kg5 $17 {[%emt 0:00:01]} ({Viel schlechter ist} 55... Bxg4 $6 56. Kxa4 $11) 56. Kc3 {[%emt 0:00:01]} Be6 {[%emt 0:00:03]} (56... Kxg4 $2 57. Kb2 $19) (56... Bxg4 $2 57. Kc2 $19) (56... Kh4 $17 57. Kb4 Kxg4 (57... Bxg4 58. Kxa4 $11)) 57. Kb4 $11 {[%emt 0:00:01]} Bb3 {[%emt 0:00:01]} 58. Ka3 {[%emt 0:00:01]} Kxg4 {[%emt 0:00:01]} 59. Kb2 {[%emt 0:00:00]} Kf4 {[%emt 0:00:01]} 60. Ka1 {[%emt 0:00:01]} Ke3 {[%emt 0:00:01]} 61. Kb1 {[%emt 0:00:00]} a3 {[%emt 0:00:01]} ({Vorzuziehen ist} 61... Be6 $17 62. Kb2 Kd3) 62. Ka1 {[%emt 0:00:01] Weiß hat die Chance genutzt.   Gewichteter Fehlerwert: Weiß=0.63/Schwarz=0.52.  Verlustzug:     	Weiß=1     	Schwarz=2     Gewinn verpasst:   	Weiß=3     	---        Fehler:       	Weiß=3     	Schwarz=7     Ungenau:       	Weiß=1     	Schwarz=3     OK:         	Weiß=18    	Schwarz=14    Bester:       	Weiß=9     	Schwarz=4     Stark:        	Weiß=2     	---        Brilliant:      	Weiß=1     	---} 1/2-1/2

[Event "Indian Blitz Championship 2023"]
[Site "Nashik"]
[Date "2024.03.07"]
[Round "3.10"]
[White "Ratnakaran, K.."]
[Black "Nagare Kaivalya Sandip"]
[Result "0-1"]
[ECO "C77"]
[WhiteElo "2258"]
[BlackElo "2074"]
[Annotator "TA"]
[PlyCount "78"]
[EventDate "2024.03.07"]
[EventType "blitz"]
[EventCountry "IND"]
[SourceTitle "playchess.com"]
[Source "ChessBase"]
[SourceQuality "1"]
[TimeControl "180+2"]

{[%evp 14,78,16,7,7,0,0,0,6,9,5,19,79,73,85,-2,-11,0,0,-10,-8,-31,0,-27,-26,-66,-67,-68,-59,-49,-54,-56,-61,-62,-67,-77,-62,-80,-65,-124,-113,-511,-503,-491,-500,-507,-507,-733,-717,-717,-696,-834,-819,-787,-260,-255,-254,-29989,-29990,-29990,-1140,-29991,-29992,-29992,-29993,-29993,-29994]} 1. e4 {[%emt 0:00:01]} e5 {[%emt 0:00:01]} 2. Nf3 {[%emt 0:00:02]} Nc6 {[%emt 0:00:01]} 3. Bb5 {[%emt 0:00:01]} a6 {[%emt 0:00:01]} 4. Ba4 {[%emt 0:00:01]} Nf6 {[%emt 0:00:01]} 5. d3 {[%emt 0:00:02]} b5 {[%emt 0:00:02]} 6. Bb3 {[%emt 0:00:01]} Be7 {[%emt 0:00:01]} 7. Nbd2 {[%emt 0:00:03]} O-O {[%emt 0:00:03]} 8. c3 {[%emt 0:00:02]} d5 {[%emt 0:00:06]} 9. exd5 {[%emt 0:00:04]} Nxd5 {[%emt 0:00:01]} 10. Ne4 {[%emt 0:00:02]} h6 {[%emt 0:00:08] The position is equal.} 11. O-O {[%emt 0:00:03]} Be6 {[%emt 0:00:04]} 12. Re1 {[%emt 0:00:03]} f5 {[%emt 0:00:26]} (12... Re8 $11) 13. Ng3 $16 {[%emt 0:00:04]} Bf6 {[%emt 0:00:11] [#]} 14. Nh5 {[%emt 0:00:10]} (14. Nd4 $1 $16 {[%cal Rd4e6]} Nxd4 (14... exd4 15. Rxe6 Na5 16. c4 $16) 15. cxd4) 14... Bf7 $11 {[%emt 0:00:45]} 15. Nxf6+ {[%emt 0:00:04]} Qxf6 {[%emt 0:00:02]} 16. a4 {[%emt 0:00:07]} b4 {[%emt 0:00:06]} 17. Bd2 {[%emt 0:00:10]} bxc3 {[%emt 0:00:01]} 18. bxc3 {[%emt 0:00:02]} Rad8 {[%emt 0:00:04][%cal Oe5e4]} 19. a5 {[%emt 0:00:03] [#]} e4 $1 {[%emt 0:00:08]} 20. dxe4 {[%emt 0:00:18]} fxe4 {[%emt 0:00:05]} 21. Nd4 {[%emt 0:00:14] [#]} (21. Rxe4 $2 Nxc3 22. Rf4 Ne2+ (22... Nxd1 23. Rxf6 Bxb3 24. Rxc6 $17) 23. Qxe2 Qxa1+ 24. Qd1 Qxd1+ 25. Bxd1 Rxd2 26. Nxd2 Rd8 $19 (26... Nxa5 27. Be2 $11)) 21... Nxc3 {[%emt 0:00:27]} 22. Bxc3 {[%emt 0:00:02]} Nxd4 {[%emt 0:00:01]} 23. Bxf7+ {[%emt 0:00:03]} Rxf7 {[%emt 0:00:02]} 24. Rxe4 {[%emt 0:00:17][%cal Rc3d4]} Qxf2+ {[%emt 0:00:01]} 25. Kh1 {[%emt 0:00:02][%cal Rc3d4]} c5 {[%emt 0:00:04]} 26. Re1 {[%emt 0:00:15]} (26. h3 $15) 26... Rdf8 {[%emt 0:00:09] White must now prevent ...Nc2. Black is much more active.} 27. Qd3 {[%emt 0:00:07][%mdl 8192] This move loses the game for White.} (27. Bxd4 $17 Qxd4 (27... cxd4 28. Qd3 $17) 28. h3) 27... Nc2 $19 {[%emt 0:00:10]} 28. h3 {[%emt 0:00:11]} Nxa1 {[%emt 0:00:02]} ({Don't take} 28... Nxe1 29. Rxe1 Ra7 30. Qg6 $19) 29. Rxa1 {[%emt 0:00:01]} Re7 {[%emt 0:00:11] Threatens to win with ...Re3.} 30. Qxa6 {[%emt 0:00:04]} Re3 {[%emt 0:00:09]} 31. Qc4+ {[%emt 0:00:19]} Kh8 {[%emt 0:00:31][%cal Of8f3] Strongly threatening ...Rff3!} 32. Rg1 {[%emt 0:00:13]} Rf4 {[%emt 0:00:00]} 33. Qb3 {[%emt 0:00:08]} Rh4 $2 {[%emt 0:00:00]} (33... Rb4 34. Bxg7+ Kxg7) 34. Qb8+ {[%emt 0:00:17]} Kh7 {[%emt 0:00:00]} 35. Be5 $2 {[%emt 0:00:01] [#]} (35. Qb1+ $19 Kg8 36. Qb8+ Qf8 37. Qxf8+ Kxf8 38. Ra1) 35... Rhxh3+ $1 {[%emt 0:00:08][%mdl 512]} 36. Bh2 {[%emt 0:00:08]} Rh5 {[%emt 0:00:00]} (36... Re1 $142 37. Qb1+ Rxb1 38. Rxb1 Rh5 39. Rd1 c4 40. Rb1 c3 (40... Rxa5 {leads to mate.} 41. Rc1 Rg5 42. Rg1 Rg4 43. g3 Qf3+ 44. Rg2 Qe4 45. Bg1 Rxg3 46. Kh2 Qxg2#) (40... Qf4 {gets mated.} 41. Kg1 Qxh2+ 42. Kf2 Qf4+ 43. Ke1 Qe3+ 44. Kd1 Rd5+ 45. Kc2 Qd2#) 41. a6 c2 42. Rc1 Qf4 43. Kg1 Qe3+ (43... Qxc1+ 44. Kf2 Rf5+ 45. Ke2 Qd1+ 46. Ke3 c1=Q+ 47. Ke4 Qd5#) 44. Kf1 Rf5+ 45. Bf4 Rxf4#) 37. a6 {[%emt 0:00:05]} Re1 {[%emt 0:00:00][%csl Gf2][%cal Re1g1] Black mates.} 38. Qb1+ {[%emt 0:00:12]} Rxb1 {[%emt 0:00:00]} 39. Rxb1 {[%emt 0:00:01]} Qh4 {[%emt 0:00:00] Weighted Error Value: White=0.90/Black=0.48.  Loses game:     	White=1     	---        Mistake:       	White=3     	Black=1      Inaccurate:     	White=3     	Black=1      OK:         	White=11    	Black=9      Best:        	---       	Black=2      Brilliant:      	---       	Black=2} 0-1

[Event "Indian Blitz Championship 2023"]
[Site "Nashik"]
[Date "2024.03.07"]
[Round "4.1"]
[White "Ghosh, Diptayan"]
[Black "Manish Anto Cristiano F"]
[Result "0-1"]
[ECO "D46"]
[WhiteElo "2559"]
[BlackElo "2286"]
[Annotator "TA"]
[PlyCount "87"]
[EventDate "2024.03.07"]
[EventType "blitz"]
[EventCountry "IND"]
[SourceTitle "playchess.com"]
[Source "ChessBase"]
[SourceQuality "1"]
[TimeControl "180+2"]

{[%evp 31,87,0,0,0,5,0,0,0,0,0,0,0,-3,-13,0,0,0,0,0,-37,0,-39,-29,-40,-7,-12,114,0,0,0,12,0,14,14,12,0,0,0,3,0,0,8,8,0,0,0,0,0,0,0,0,0,0,0,0,0,0,0]} 1. Nf3 {[%emt 0:00:02]} Nf6 {[%emt 0:00:01]} 2. c4 {[%emt 0:00:01]} c6 {[%emt 0:00:01]} 3. Nc3 {[%emt 0:00:03]} d5 {[%emt 0:00:01]} 4. e3 {[%emt 0:00:00]} e6 {[%emt 0:00:01]} 5. d4 {[%emt 0:00:04]} Nbd7 {[%emt 0:00:01]} 6. Qc2 {[%emt 0:00:04]} Bd6 {[%emt 0:00:02]} 7. Bd3 {[%emt 0:00:02]} dxc4 {[%emt 0:00:01]} 8. Bxc4 {[%emt 0:00:01]} b5 {[%emt 0:00:02]} 9. Bd3 {[%emt 0:00:01]} Bb7 {[%emt 0:00:01]} 10. O-O {[%emt 0:00:02]} O-O {[%emt 0:00:02]} 11. e4 {[%emt 0:00:01]} e5 {[%emt 0:00:04]} 12. h3 {[%emt 0:00:01]} Re8 {[%emt 0:00:09]} 13. Be3 {[%emt 0:00:03]} a6 {[%emt 0:00:08]} 14. dxe5 {[%emt 0:00:08]} Nxe5 {[%emt 0:00:03]} 15. Nxe5 {[%emt 0:00:02]} Bxe5 {[%emt 0:00:01]} 16. Rad1 {[%emt 0:00:01]} Qe7 {[%emt 0:00:08]} 17. Ne2 {[%emt 0:00:24][%cal Bc3e2,Be2d4,Bd4b3,Bb3c5][%mdl 32]} Bd6 {[%emt 0:00:21][%cal Oc6c5] Wards off Bc5} 18. Nd4 {[%emt 0:00:08]} g6 {[%emt 0:00:09] [#] Wards off Nf5. Strongly threatening ...c5.} 19. Nb3 {[%emt 0:00:02]} c5 {[%emt 0:00:42]} 20. Bxc5 {[%emt 0:00:07]} Nxe4 {[%emt 0:00:24]} 21. Bxd6 {[%emt 0:01:05]} Nxd6 {[%emt 0:00:01]} 22. Nc5 {[%emt 0:00:27]} Rac8 {[%emt 0:00:04]} 23. b4 $1 {[%emt 0:00:01]} Qg5 {[%emt 0:00:19][%csl Gb7][%cal Rg5g2]} 24. f4 {[%emt 0:00:01]} Qf6 {[%emt 0:00:10]} 25. Kh2 {[%emt 0:00:06]} a5 {[%emt 0:00:18]} 26. a3 {[%emt 0:00:04]} axb4 {[%emt 0:00:01]} 27. axb4 {[%emt 0:00:00]} Ba8 {[%emt 0:00:02]} 28. Qf2 {[%emt 0:00:04]} Nc4 {[%emt 0:00:09]} (28... Bc6 $11 {keeps the balance.}) 29. Rde1 {[%emt 0:00:16]} (29. Bxc4 $16 bxc4 30. Nd7) 29... Qc3 {[%emt 0:00:02] The position is equal.} 30. f5 {[%emt 0:00:24]} Rxe1 {[%emt 0:00:19]} (30... Qxb4 31. fxg6) 31. Rxe1 {[%emt 0:00:00]} Qxb4 {[%emt 0:00:03]} 32. fxg6 $1 {[%emt 0:00:21]} hxg6 {[%emt 0:00:04] [#]} 33. Re7 $1 {[%emt 0:00:00]} Bd5 {[%emt 0:00:07]} (33... Qxc5 34. Qxf7+ Kh8 35. Qh7#) 34. Bxg6 {[%emt 0:00:00]} Qxc5 {[%emt 0:00:04]} 35. Bxf7+ {[%emt 0:00:00]} Kf8 {[%emt 0:00:00]} 36. Re8+ $1 {[%emt 0:00:00]} (36. Bxd5+ Qxf2 37. Rh7 Nd6 (37... Qf4+ 38. Kh1 Nd6 39. Rh8+ Kg7 40. Rxc8 Nxc8 41. Bf3 Nd6 42. Bh5 b4 43. Bd1 Qf1+ 44. Kh2 Qxd1 45. Kg3 b3 46. h4 b2 47. Kf4 b1=Q 48. Kg3 Nf5+ 49. Kh3 Qbd3+ 50. Kh2 Qg3#) 38. Rh8+ Kg7 39. Rxc8 Nxc8 40. Bb3 Nd6 41. Be6 Nf5 42. Bxf5 Qxf5 43. Kh1 b4 44. h4 b3 45. h5 b2 (45... Qxh5+ {leads to mate.} 46. Kg1 b2 47. Kf2 b1=Q 48. g3 Qb6+ 49. Kg2 Qe2+ 50. Kh3 Qh6#) 46. Kh2 b1=Q (46... b1=B {gets mated.} 47. Kh1 Be4 48. Kh2 Qf2 49. Kh3 Kh6 50. g3 Kg5 51. g4 Qh4#) 47. h6+ Kxh6 48. Kg3 Qe1+ 49. Kh2 Qh5#) 36... Kg7 $1 {[%emt 0:00:05]} 37. Qg3+ {[%emt 0:00:02]} Kxf7 {[%emt 0:00:01]} 38. Qg8+ {[%emt 0:00:01]} Kf6 {[%emt 0:00:00]} 39. Qh8+ {[%emt 0:00:01]} Kf7 {[%emt 0:00:01]} 40. Rxc8 {[%emt 0:00:04]} Qd6+ {[%emt 0:00:01]} 41. Kh1 {[%emt 0:00:01] aiming for Rd8.} Bxg2+ {[%emt 0:00:08]} 42. Kxg2 {[%emt 0:00:01][%cal Oc8c7] Hoping for Rc7+!} Qd2+ {[%emt 0:00:00]} 43. Kg3 {[%emt 0:00:03] White threatens Rc7+ and mate.} Qe3+ {[%emt 0:00:01]} 44. Kg4 {[%emt 0:00:11][%mdl 32768] Weighted Error Value: White=0.08 (flawless) /Black=0.12 (very precise) .  Mistake:       	White=1     	Black=1      Inaccurate:     	White=2     	Black=2      OK:         	White=7     	Black=11     Best:        	White=1     	Black=1      Strong:       	White=3     	Black=1     . Sensor Board Error (Ke4/e5)?} 0-1